{"text_format":"3","workbook":"xlsx","n_sheets":1,"sheets":["1"],"not_rendered":{"defined_names":2},"read":"whole","date_system":"1900"}

{"sheet":"1","index":0,"n_rows":26,"n_cols":24,"rows_kept":26,"merged":[[0,0,0,22]]}
["首都儿科研究所及附属儿童医院面向2025年应届毕业生（含博士后出站人员）公开招聘岗位信息",{"$nulls":22}," "]
["序号","主管部门","单位名称","用人部门","招聘岗位","职位简介","岗位类别","拟聘岗位等级","招聘人数","学历要求","学位要求","专业要求","年龄","专业工作年限","是否要求相关职业资格","政治面貌","其他条件","招聘范围","招聘方式","是否组织专业考试","计划聘用人数与面试人选的确定比例","联系信息","备注"]
[1,"北京市卫生健康委","首都儿科研究所附属儿童医院","首都儿科研究所附属儿童医院","儿内科医生",{"$f":"E3&\"相关工作\"","v":"儿内科医生相关工作"},"专业技术岗","十二级",10,"仅限博士研究生","具有与最高学历相对应的学位","儿科学100202、儿内科学105102、内科学100201","不限","不限","是","不限","已取得执业医师证书","不限","笔试+面试","是","1:3","010-85695701"]
[2,"北京市卫生健康委","首都儿科研究所附属儿童医院","首都儿科研究所附属儿童医院","儿外科医生",{"$f":"E4&\"相关工作\"","v":"儿外科医生相关工作"},"专业技术岗","十二级",3,"仅限博士研究生","具有与最高学历相对应的学位","儿科学100202、儿外科学105112、外科学100210","不限","不限","是","不限","已取得执业医师证书","不限","笔试+面试","是","1:3","010-85695701"]
[3,"北京市卫生健康委","首都儿科研究所附属儿童医院","首都儿科研究所附属儿童医院","急诊科医生","急诊科医生相关工作","专业技术岗","十二级",2,"硕士研究生及以上","具有与最高学历相对应的学位","儿科学100202","不限","不限","是","不限","1.已取得执业医师证书\n2.完成住院医师规范化培训","不限","笔试+面试","是","1:3","010-85695701"]
[4,"北京市卫生健康委","首都儿科研究所附属儿童医院","首都儿科研究所附属儿童医院","变态反应科医生","变态反应科医生相关工作","专业技术岗","十二级",1,"仅限博士研究生","具有与最高学历相对应的学位","儿科学100202、内科学100201","不限","不限","是","不限","已取得执业医师证书","不限","笔试+面试","是","1:3","010-85695701"]
[5,"北京市卫生健康委","首都儿科研究所附属儿童医院","首都儿科研究所附属儿童医院","心功能室超声心动图医生","心功能室超声心动图医生相关工作","专业技术岗","十二级",1,"硕士研究生及以上","具有与最高学历相对应的学位","影像医学与核医学100207，放射影像学105123、儿科学100202、内科学100201","不限","不限","是","不限","已取得执业医师证书","不限","笔试+面试","是","1:3","010-85695701"]
[6,"北京市卫生健康委","首都儿科研究所附属儿童医院","首都儿科研究所附属儿童医院","保健科医生","保健科医生相关工作","专业技术岗","十二级",1,"仅限博士研究生","具有与最高学历相对应的学位","儿科学100202、内科学100201、儿少卫生与妇幼保健学100404、康复医学与理疗学100215","不限","不限","是","不限","已取得执业医师证书","不限","笔试+面试","是","1:3","010-85695701"]
[7,"北京市卫生健康委","首都儿科研究所附属儿童医院","首都儿科研究所附属儿童医院","麻醉科医生","麻醉科医生相关工作","专业技术岗","十二级",2,"仅限博士研究生","具有与最高学历相对应的学位","麻醉学100217","不限","不限","是","不限","1.已取得执业医师证书\n2.发表Q2及以上SCI文章优先","不限","笔试+面试","是","1:3","010-85695701"]
[8,"北京市卫生健康委","首都儿科研究所附属儿童医院","首都儿科研究所附属儿童医院","耳鼻咽喉头颈外科医生","耳鼻咽喉头颈外科医生相关工作","专业技术岗","十二级",1,"仅限博士研究生","具有与最高学历相对应的学位","耳鼻咽喉科学100213","不限","不限","是","不限","已取得执业医师证书","不限","笔试+面试","是","1:3","010-85695701"]
[9,"北京市卫生健康委","首都儿科研究所附属儿童医院","首都儿科研究所附属儿童医院","眼科医生","眼科医生相关工作","专业技术岗","十二级",1,"仅限博士研究生","具有与最高学历相对应的学位","眼科学100212","不限","不限","是","不限","1.已取得执业医师证书\n2.取得专业学位或完成住院医师规范化培训者优先","不限","笔试+面试","是","1:3","010-85695701"]
[10,"北京市卫生健康委","首都儿科研究所附属儿童医院","首都儿科研究所附属儿童医院","口腔科医生","口腔科医生相关工作","专业技术岗","十二级",2,"仅限博士研究生","具有与最高学历相对应的学位","口腔临床医学100302","不限","不限","是","不限","1.已取得执业医师证书\n2.完成住院医师规范化培训","不限","笔试+面试","是","1:3","010-85695701"]
[11,"北京市卫生健康委","首都儿科研究所附属儿童医院","首都儿科研究所附属儿童医院","皮肤一科医生","皮肤一科医生相关工作","专业技术岗","十二级",1,"仅限博士研究生","具有与最高学历相对应的学位","皮肤病与性病学100206","不限","不限","是","不限","已取得执业医师证书","不限","笔试+面试","是","1:3","010-85695701"]
[12,"北京市卫生健康委","首都儿科研究所附属儿童医院","首都儿科研究所附属儿童医院","皮肤二科医生","皮肤二科医生相关工作","专业技术岗","十二级",1,"仅限博士研究生","具有与最高学历相对应的学位","皮肤病与性病学100206","不限","不限","是","不限","已取得执业医师证书","不限","笔试+面试","是","1:3","010-85695701"]
[13,"北京市卫生健康委","首都儿科研究所附属儿童医院","首都儿科研究所附属儿童医院","儿童营养研究中心医生","儿童营养研究中心医生相关工作","专业技术岗","十二级",1,"仅限博士研究生","具有与最高学历相对应的学位","临床医学1002、儿科学100202、儿少卫生与妇幼保健学100404","不限","不限","是","不限","已取得执业医师证书","不限","笔试+面试","是","1:3","010-85695701"]
[14,"北京市卫生健康委","首都儿科研究所附属儿童医院","首都儿科研究所附属儿童医院","血管瘤及介入血管中心医生","血管瘤及介入血管中心医生相关工作","专业技术岗","十二级",2,"仅限博士研究生","具有与最高学历相对应的学位","内科学100201，外科学100210，儿科学100202，放射影像学105123","不限","不限","是","不限","1.已取得执业医师证书\n2.完成住院医师规范化培训者优先","不限","笔试+面试","是","1:3","010-85695701"]
[15,"北京市卫生健康委","首都儿科研究所附属儿童医院","首都儿科研究所附属儿童医院","放射科医生","放射科医生相关工作","专业技术岗","十二级",2,"硕士研究生及以上","具有与最高学历相对应的学位","影像医学与核医学100207，放射影像学105123","不限","不限","是","不限","1.已取得执业医师证书\n2.完成住院医师规范化培训者优先","不限","笔试+面试","是","1:3","010-85695701"]
[16,"北京市卫生健康委","首都儿科研究所附属儿童医院","首都儿科研究所附属儿童医院","超声科医生","超声科医生相关工作","专业技术岗","十二级",3,"硕士研究生及以上","具有与最高学历相对应的学位","超声医学105124、影像医学与核医学100207，放射影像学105123","不限","不限","是","不限","已取得执业医师证书","不限","笔试+面试","是","1:3","010-85695701"]
[17,"北京市卫生健康委","首都儿科研究所附属儿童医院","首都儿科研究所附属儿童医院","病理科医生","病理科医生相关工作","专业技术岗","十二级",1,"仅限博士研究生","具有与最高学历相对应的学位","病理学与病理生理学100104","不限","不限","是","不限","1.已取得执业医师证书\n2.北京户口优先\n3.中共党员优先","不限","笔试+面试","是","1:3","010-85695701"]
[18,"北京市卫生健康委","首都儿科研究所附属儿童医院","首都儿科研究所附属儿童医院","病理科技师","病理科技师相关工作","专业技术岗","十二级",1,"仅限博士研究生","具有与最高学历相对应的学位","病理学与病理生理学100104","不限","不限","否","不限","1.北京户口优先\n2.中共党员优先","不限","笔试+面试","是","1:3","010-85695701"]
[19,"北京市卫生健康委","首都儿科研究所附属儿童医院","首都儿科研究所附属儿童医院","精神心理科医生","精神心理科医生相关工作","专业技术岗","十二级",1,"仅限博士研究生","具有与最高学历相对应的学位","精神病与精神卫生学100205","不限","不限","是","不限","1.已取得执业医师证书\n2.完成住院医师规范化培训","不限","笔试+面试","是","1:3","010-85695701"]
[20,"北京市卫生健康委","首都儿科研究所附属儿童医院","首都儿科研究所附属儿童医院","药学部临床药师","药学部临床药师相关工作","专业技术岗","十二级",1,"仅限博士研究生","具有与最高学历相对应的学位","药学1007、药物分析学100704、药物化学100701、药理学100706","不限","不限","否","不限",null,"不限","笔试+面试","是","1:3","010-85695701"]
[21,"北京市卫生健康委","首都儿科研究所附属儿童医院","首都儿科研究所附属儿童医院","检验中心检验技师","检验中心检验技师相关工作","专业技术岗","十二级",1,"仅限博士研究生","具有与最高学历相对应的学位","生物化学与分子生物学071010、基础医学1001、细胞生物学071009、遗传学071007","不限","不限","否","不限","1.取得执业医师证书优先\n2.发表Q2及以上SCI论文者优先","不限","笔试+面试","是","1:3","010-85695701"]
[22,"北京市卫生健康委","首都儿科研究所附属儿童医院","首都儿科研究所附属儿童医院","输血科技师 ","输血科技师 相关工作","专业技术岗","十二级",1,"仅限博士研究生","具有与最高学历相对应的学位","输血医学1002Z7、临床医学1002、基础医学1001","不限","不限","否","不限","有临床及科研经验者优先","不限","笔试+面试","是","1:3","010-85695701"]
[23,"北京市卫生健康委","首都儿科研究所","首都儿科研究所","遗传学研究室科研人员","遗传学研究室科研人员相关工作","专业技术岗","十二级",1,"仅限博士研究生","具有与最高学历相对应的学位","生物学0710、遗传学071007、神经生物学071006、生物化学与分子生物学071010","不限","不限","否","不限",null,"不限","笔试+面试","是","1:3","010-85695701"]
[24,"北京市卫生健康委","首都儿科研究所","首都儿科研究所","实验中心科研人员","实验中心科研人员相关工作","专业技术岗","十二级",1,"仅限博士研究生","具有与最高学历相对应的学位","生物学0710、免疫学100102、病原生物学100103、微生物学071005、生物化学和分子生物学071010、细胞生物学071009","不限","不限","否","不限","具备宏基因组学、代谢组学、蛋白组学、单细胞组学等多维组学分析能力者优先","不限","笔试+面试","是","1:3","010-85695701"]